fUSD/lending_fUSD_20251211
["ID","MTS","AMOUNT","RATE_DAILY","PERIOD"]
[398232703,1765442692180,-500.0,0.0001589,2]
[398232704,1765442692212,-500.0,0.0001589,2]
[398232705,1765442692242,-151.0,0.0001589,2]
[398232706,1765442692271,-500.0,0.0001589,2]
[398232707,1765442692304,-500.0,0.0001589,2]
[398232708,1765442692332,-151.0,0.0001589,2]
[398232709,1765442692364,-500.0,0.0001589,2]
[398232710,1765442692393,-500.0,0.0001589,2]
[398232711,1765442692421,-151.0,0.0001589,2]
[398232712,1765442692520,-500.0,0.0001589,2]
[398232713,1765442692547,-500.0,0.0001589,2]
[398232714,1765442692576,-500.0,0.0001589,2]
[398232715,1765442692605,-636.50815894,0.0001589,2]
[398232716,1765442692632,-151.0,0.0001589,2]
[398232717,1765442692661,-151.0,0.0001589,2]
[398232718,1765442692689,-151.0,0.0001589,2]
[398232719,1765442692719,-151.0,0.0001589,2]
[398232720,1765442692751,-500.0,0.0001589,2]
[398232721,1765442692779,-151.0,0.0001589,2]
[398232722,1765442692807,-151.0,0.0001589,2]
[398232723,1765442692834,-151.0,0.0001589,2]
[398232724,1765442692861,-151.0,0.0001589,2]
[398232725,1765442692890,-151.0,0.0001589,2]
[398232726,1765442692922,-151.0,0.0001589,2]
[398232727,1765442692952,-151.0,0.0001589,2]
[398232728,1765442692980,-300.0,0.0001589,2]
[398232729,1765442693008,-151.42837888,0.0001589,2]
[398232730,1765442693036,-202.13692436,0.00015898,2]
[398232732,1765442693571,-38.87307564,0.00015898,2]
[398232733,1765442693585,-58.99,0.00015898,2]
[398232734,1765442693595,-92.43837888,0.00015899,2]
[398232735,1765442693616,-300.0,0.00015899,2]
[398232737,1765442695084,-607.56162112,0.00015899,2]
[398232738,1765442695114,-500.0,0.00015899,2]
[398232739,1765442695145,-340.58751573,0.00015899,2]
[398232740,1765442695174,-500.0,0.00015899,2]
[398232741,1765442695202,-500.0,0.00015899,2]
[398232742,1765442695230,-500.0,0.00015899,2]
[398232743,1765442695258,-217.50002188,0.00015899,2]
[398232744,1765442695286,-500.0,0.00015899,2]
[398232745,1765442695318,-500.0,0.00015899,2]
[398232746,1765442695353,-430.47224562,0.00015899,2]
[398232747,1765442695701,-807.7671913,0.00015899,2]
[398232749,1765442697953,-954.3928087,0.00015899,2]
[398232750,1765442697983,-1762.16,0.00015899,2]
[398232751,1765442698030,-4566.9043826,0.000159,2]
[398232752,1765442698056,-10000.01,0.000159,2]
[398232753,1765442698171,-10000.01,0.000159,2]
[398232762,1765442716698,-2756.121609,0.00015819,2]
[398232763,1765442716727,-300.0,0.00015899,2]
[398232764,1765442716758,-1200.0,0.00015899,2]
[398232765,1765442716788,-300.0,0.00015899,2]
[398232766,1765442716818,-300.0,0.000159,2]
[398232767,1765442717069,-287.766782,0.000159,2]
[398232768,1765442717107,-10000.01,0.000159,2]
[398232769,1765442717131,-10000.01,0.000159,2]
[398232770,1765442717248,-10000.01,0.000159,2]
[398232771,1765442717350,-10000.01,0.000159,2]
[398232772,1765442717461,-10000.01,0.000159,2]
[398232774,1765442717594,-10000.01,0.000159,2]
[398232775,1765442717693,-10000.01,0.000159,2]
[398232776,1765442717825,-10000.01,0.000159,2]
[398232779,1765442722780,-10000.01,0.000159,2]
[398232780,1765442722916,-10000.01,0.000159,2]
[398232783,1765442728893,-10000.01,0.000159,2]
[398232784,1765442729037,-10000.01,0.000159,2]
[398232789,1765442738265,-10000.01,0.000159,2]
[398232790,1765442738374,-10000.01,0.000159,2]
[398232802,1765442787944,-243.33,0.00015898,2]
[398232803,1765442787972,-1000.0,0.00015899,2]
[398232804,1765442788006,-500.0,0.00015899,2]
[398232805,1765442788037,-376.50042356,0.00015899,2]
[398232806,1765442788068,-500.0,0.00015899,2]
[398232807,1765442788097,-300.0,0.00015899,2]
[398232808,1765442788125,-500.0,0.00015899,2]
[398232809,1765442788153,-500.0,0.00015899,2]
[398232810,1765442788181,-195.0,0.000159,2]
[398232811,1765442788370,-197.23732865,0.00015799,2]
[398232812,1765442788426,-1573.11182423,0.000159,2]
[398232813,1765442788512,-197.23732865,0.000159,2]
[398232814,1765442788526,-9605.5353427,0.000159,2]
[398232815,1765442793996,-10000.01,0.000159,2]
[398232816,1765442794133,-197.23732865,0.000158,2]
[398232817,1765442794180,-9605.5353427,0.000159,2]
[398232818,1765442800206,-10000.01,0.000159,2]
[398232819,1765442806688,-10000.01,0.000159,2]
[398232823,1765442827993,-281.2726,0.000158,2]
[398232824,1765442828014,-105.82448926,0.000158,2]
[398232825,1765442830011,271.0,0.0001563,2]
[398232826,1765442830213,-247.53843764,0.000158,2]
[398232827,1765442832051,250.0,0.0001563,2]
[398232828,1765442832212,-367.7840324,0.000158,2]
[398232829,1765442835540,-240.95116822,0.000158,2]
[398232830,1765442836013,274.07,0.00013699,2]
[398232831,1765442841468,-37.90187248,0.000158,2]
[398232832,1765442841495,-200.0,0.0001589,2]
[398232833,1765442841523,-192.6,0.0001589,2]
[398232834,1765442841550,-500.0,0.0001589,2]
[398232835,1765442841579,-500.0,0.00015899,2]
[398232836,1765442841606,-522.35435032,0.00015899,2]
[398232837,1765442841817,-5349.2275544,0.000159,2]
[398232838,1765442841887,-10000.01,0.000159,2]
[398232839,1765442847476,-10000.01,0.000159,2]
[398232840,1765442850967,-10000.01,0.000159,2]
[398232841,1765442851224,-10000.01,0.000159,2]
[398232842,1765442853880,-10000.01,0.000159,2]
[398232843,1765442856869,-151.0,0.0001589,2]
[398232844,1765442856906,-9698.01,0.000159,2]
[398232845,1765442856962,-10000.01,0.000159,2]
[398232846,1765442873049,-239.69996494,0.000158,2]
[398232847,1765442878008,-228.61655972,0.000158,2]
[398232848,1765442880812,-299.90879008,0.00015799,2]
[398232849,1765442882339,-489.75852748,0.00015799,2]
[398232850,1765442884628,-175.06736117,0.00015799,2]
[398232851,1765442886235,-208.35748136,0.00015799,2]
[398232852,1765442890039,-26.90783991,0.00015799,2]
[398232853,1765442890061,-300.0,0.00015799,2]
[398232854,1765442890081,-209.52805344,0.000158,2]
[398232855,1765442892572,-169.10002417,0.000158,2]
[398232856,1765442894711,-301.9265699,0.000158,2]
[398232857,1765442896791,-172.21759235,0.000158,2]
[398232858,1765442903337,-313.5586528,0.000158,2]
[398232859,1765442904782,-263.91589208,0.000158,2]
[398232860,1765442906304,-263.46924619,0.000158,2]
[398232861,1765442908395,-307.02482756,0.000158,2]
[398232862,1765442910053,-246.13558361,0.000158,2]
[398232863,1765442912268,-289.83671787,0.000158,2]
[398232864,1765442915503,-239.31704558,0.000158,2]
[398232865,1765442917068,-180.64886714,0.000158,2]
[398232866,1765442920710,-452.97834523,0.000158,2]
[398232867,1765442923017,-215.94235742,0.000158,2]
[398232868,1765442923039,-247.67156374,0.000158,2]
[398232869,1765442928485,-648.06580512,0.000158,2]
[398232870,1765442930761,-230.23758203,0.000158,2]
[398232871,1765442934185,-151.7580444,0.000158,2]
[398232872,1765442936712,-214.97346573,0.000158,2]
[398232873,1765442939081,-328.16104454,0.000158,2]
[398232874,1765442941334,-426.03308971,0.000158,2]
[398232875,1765442943481,-152.78513759,0.000158,2]
[398232876,1765442945125,-419.67422565,0.000158,2]
[398232877,1765442947842,-209.76780668,0.000158,2]
[398232878,1765442949585,-158.63546061,0.000158,2]
[398232879,1765442951186,-301.92755321,0.000158,2]
[398232880,1765442952723,-1101.84078485,0.000158,2]
[398232881,1765442954932,-371.97342857,0.000158,2]
[398232882,1765442957530,-260.07639884,0.000158,2]
[398232883,1765442959601,-178.48883473,0.000158,2]
[398232953,1765442961580,-180.68591237,0.000158,2]
[398233000,1765442963677,-383.97099058,0.000158,2]
[398233002,1765442965930,-155.66375929,0.000158,2]
[398233003,1765442968032,-199.1397805,0.000158,2]
[398233004,1765442971194,-193.14543496,0.000158,2]
[398233005,1765442973331,-200.57287394,0.000158,2]
[398233006,1765442975354,-628.67620888,0.000158,2]
[398233007,1765442978458,-312.79963433,0.000158,2]
[398233008,1765442981509,-261.63898327,0.000158,2]
[398233009,1765442983760,-331.51001403,0.000158,2]
[398233010,1765442984907,-10000.01,0.000158,2]
[398233011,1765442985125,-10000.01,0.000158,2]
[398233012,1765442985230,-10000.01,0.000158,2]
[398233013,1765442985347,-10000.01,0.000158,2]
[398233014,1765442985629,-10000.01,0.000158,2]
[398233015,1765442985735,-10000.01,0.000158,2]
[398233016,1765442985854,-10000.01,0.000158,2]
[398233017,1765442987465,-187.24405606,0.000158,2]
[398233018,1765442990956,-10000.01,0.000158,2]
[398233019,1765443009825,-221.5,0.0001579,2]
[398233020,1765443009852,-221.5,0.0001579,2]
[398233021,1765443009879,-300.0,0.00015799,2]
[398233022,1765443009908,-300.0,0.00015799,2]
[398233023,1765443009935,-1200.0,0.00015799,2]
[398233024,1765443009962,-282.0,0.00015799,2]
[398233025,1765443009990,-243.04432579,0.000158,2]
[398233026,1765443010018,-1963.92134842,0.000158,2]
[398233027,1765443010134,-536.07865158,0.000158,2]
[398233028,1765443010167,-192.33284578,0.000158,2]
[398233029,1765443010213,-9615.34430844,0.000158,2]
[398233030,1765443010225,-10000.01,0.000158,2]
[398233031,1765443010280,-1842.15336192,0.000158,2]
[398233032,1765443010312,-6315.70327616,0.000158,2]
[398233033,1765443010389,-364.64262384,0.000158,2]
[398233034,1765443010416,-235.6169,0.000158,2]
[398233035,1765443010445,-1000.0,0.000158,2]
[398233036,1765443010510,-6799.49095232,0.000158,2]
[398233037,1765443010538,-10000.01,0.000158,2]
[398233038,1765443010678,-10000.01,0.000158,2]
[398233039,1765443010799,-10000.01,0.000158,2]
[398233040,1765443010895,-10000.01,0.000158,2]
[398233041,1765443019109,-10000.01,0.000158,2]
[398233042,1765443019226,-10000.01,0.000158,2]
[398233043,1765443019465,-10000.01,0.000158,2]
[398233044,1765443019690,-10000.01,0.000158,2]
[398233045,1765443019839,-10000.01,0.000158,2]
[398233046,1765443019947,-10000.01,0.000158,2]
[398233047,1765443020063,-10000.01,0.000158,2]
[398233048,1765443020181,-10000.01,0.000158,2]
[398233049,1765443020413,-10000.01,0.000158,2]
[398233061,1765443032271,-188.78043286,0.00015799,2]
[398233062,1765443032280,-237.00626762,0.00015799,2]
[398233063,1765443032290,-157.84577759,0.000158,2]
[398233064,1765443032300,-5506.7214634,0.000158,2]
[398233065,1765443032312,-343.24244796,0.000158,2]
[398233066,1765443032336,-688.72,0.000158,2]
[398233067,1765443032352,-630.75339574,0.000158,2]
[398233068,1765443032363,-59905.72954285,0.000158,2]
[398233069,1765443032452,-3138.6752591,0.000158,2]
[398233070,1765443032464,-300.0,0.000158,2]
[398233071,1765443032511,-500.0,0.000158,2]
[398233077,1765443038038,-500.0,0.00015799,2]
[398233078,1765443038071,-279.08598277,0.00015799,2]
[398233079,1765443038102,-500.0,0.00015799,2]
[398233080,1765443038133,-500.0,0.00015799,2]
[398233081,1765443038164,-500.0,0.00015799,2]
[398233086,1765443038195,-500.0,0.00015799,2]
[398233092,1765443038229,-500.0,0.00015799,2]
[398233096,1765443038268,-209.68035695,0.000158,2]
[398233097,1765443038391,-3441.83803446,0.000158,2]
[398233098,1765443038403,-548377.17276963,0.000158,2]
[398233099,1765443038413,-3338.7952,0.000158,2]
[398233100,1765443038423,-300.0,0.00015845,2]
[398233101,1765443038433,-300.0,0.00015878,2]
[398233102,1765443038443,-151.0,0.0001589,2]
[398233103,1765443038453,-151.0,0.0001589,2]
[398233104,1765443038463,-151.0,0.0001589,2]
[398233105,1765443038473,-151.0,0.0001589,2]
[398233106,1765443038483,-151.0,0.0001589,2]
[398233107,1765443038492,-151.0,0.0001589,2]
[398233108,1765443038502,-151.0,0.0001589,2]
[398233109,1765443038516,-151.0,0.0001589,2]
[398233110,1765443038526,-151.0,0.0001589,2]
[398233111,1765443038536,-151.0,0.0001589,2]
[398233112,1765443038545,-1000.0,0.00015899,2]
[398233113,1765443038557,-500.0,0.00015899,2]
[398233115,1765443038567,-500.0,0.00015899,2]
[398233117,1765443038576,-500.0,0.00015899,2]
[398233119,1765443038586,-500.0,0.00015899,2]
[398233121,1765443038595,-1741.36,0.00015899,2]
[398233123,1765443038605,-1741.36,0.00015899,2]
[398233125,1765443038615,-508.56984637,0.00015899,2]
[398233127,1765443038624,-594.25266503,0.00015899,2]
[398233128,1765443038633,-307.45917061,0.00015899,2]
[398233129,1765443038643,-500.0,0.00015899,2]
[398233131,1765443038653,-509.33061346,0.00015899,2]
[398233133,1765443038662,-504.57961384,0.00015899,2]
[398233134,1765443038672,-500.0,0.00015899,2]
[398233135,1765443038681,-639.43074854,0.00015899,2]
[398233136,1765443038690,-500.0,0.00015899,2]
[398233137,1765443038699,-500.0,0.00015899,2]
[398233138,1765443038709,-200.0,0.000159,2]
[398233139,1765443038719,-195.0,0.00015941,2]
[398233140,1765443038728,-200.0,0.00016059,2]
[398233141,1765443038737,-150.1607794,0.00016098,2]
[398233142,1765443038747,-1000.0,0.00016197,2]
[398233143,1765443038954,-8010.1567,0.00016197,2]
[398233144,1765443038966,-200.0,0.00016198,2]
[398233145,1765443038978,-200.0,0.0001622,2]
[398233146,1765443038989,-456.39444569,0.00016297,2]
[398233147,1765443038999,-500.0,0.00016297,2]
[398233148,1765443039010,-500.0,0.00016297,2]
[398233149,1765443039021,-500.0,0.00016297,2]
[398233150,1765443039031,-500.0,0.00016297,2]
[398233151,1765443039040,-500.0,0.00016297,2]
[398233152,1765443039051,-500.0,0.00016297,2]
[398233153,1765443039060,-500.0,0.00016297,2]
[398233154,1765443039071,-497.78853806,0.00016297,2]
[398233155,1765443039080,-500.0,0.00016297,2]
[398233156,1765443039090,-500.0,0.00016297,2]
[398233157,1765443039099,-548.06196267,0.00016297,2]
[398233158,1765443039109,-500.0,0.00016297,2]
[398233159,1765443039119,-500.0,0.00016297,2]
[398233160,1765443039128,-500.0,0.00016297,2]
[398233161,1765443039138,-500.0,0.00016297,2]
[398233162,1765443039148,-500.0,0.00016297,2]
[398233163,1765443039157,-500.0,0.00016297,2]
[398233164,1765443039167,-500.0,0.00016297,2]
[398233165,1765443039176,-500.0,0.00016297,2]
[398233166,1765443039185,-502.23197211,0.00016297,2]
[398233167,1765443039195,-500.0,0.00016297,2]
[398233168,1765443039204,-500.0,0.00016297,2]
[398233169,1765443039213,-500.0,0.00016297,2]
[398233170,1765443039223,-1060.54,0.00016297,2]
[398233171,1765443039233,-500.0,0.00016297,2]
[398233172,1765443039242,-514.499592,0.00016297,2]
[398233173,1765443039251,-500.0,0.00016297,2]
[398233174,1765443039261,-500.0,0.00016297,2]
[398233175,1765443039270,-500.0,0.00016297,2]
[398233176,1765443039279,-12268.52316783,0.00016338,2]
[398233177,1765443039288,-200.0,0.0001636,2]
[398233178,1765443039298,-200.0,0.00016382,2]
[398233179,1765443039308,-500.0,0.00016438,2]
[398233180,1765443039317,-500.0,0.00016438,2]
[398233181,1765443039326,-500.0,0.00016438,2]
[398233182,1765443039335,-500.0,0.00016438,2]
[398233183,1765443039344,-500.0,0.00016438,2]
[398233184,1765443039353,-500.0,0.00016438,2]
[398233185,1765443039362,-500.0,0.00016438,2]
[398233186,1765443039372,-500.0,0.00016438,2]
[398233187,1765443039381,-500.0,0.00016438,2]
[398233188,1765443039391,-500.0,0.00016438,2]
[398233189,1765443039400,-500.0,0.00016438,2]
[398233190,1765443039410,-500.0,0.00016438,2]
[398233191,1765443039419,-500.0,0.00016438,2]
[398233192,1765443039428,-500.0,0.00016438,2]
[398233193,1765443039437,-500.0,0.00016438,2]
[398233194,1765443039446,-500.0,0.00016438,2]
[398233195,1765443039455,-500.0,0.00016438,2]
[398233196,1765443039465,-500.0,0.00016438,2]
[398233197,1765443039474,-500.0,0.00016438,2]
[398233198,1765443039483,-500.0,0.00016438,2]
[398233199,1765443039491,-500.0,0.00016438,2]
[398233200,1765443039501,-500.0,0.00016438,2]
[398233201,1765443039513,-500.0,0.00016438,2]
[398233202,1765443039523,-500.0,0.00016438,2]
[398233203,1765443039532,-500.0,0.00016438,2]
[398233204,1765443039541,-500.0,0.00016438,2]
[398233205,1765443039550,-500.0,0.00016438,2]
[398233206,1765443039560,-500.0,0.00016438,2]
[398233207,1765443039568,-500.0,0.00016438,2]
[398233208,1765443039579,-500.0,0.00016438,2]
[398233209,1765443039588,-500.0,0.00016438,2]
[398233210,1765443039598,-500.0,0.00016438,2]
[398233211,1765443039607,-500.0,0.00016438,2]
[398233212,1765443039617,-500.0,0.00016438,2]
[398233213,1765443039626,-500.0,0.00016438,2]
[398233214,1765443039636,-500.0,0.00016438,2]
[398233215,1765443039645,-500.0,0.00016438,2]
[398233216,1765443039654,-488.10746466,0.00016438,2]
[398233217,1765443039663,-500.0,0.00016438,2]
[398233218,1765443039671,-500.0,0.00016438,2]
[398233219,1765443039681,-500.0,0.00016438,2]
[398233220,1765443039690,-500.0,0.00016438,2]
[398233221,1765443039700,-500.0,0.00016438,2]
[398233222,1765443039712,-500.0,0.00016438,2]
[398233223,1765443039721,-500.0,0.00016438,2]
[398233224,1765443039731,-500.0,0.00016438,2]
[398233225,1765443039739,-500.0,0.00016438,2]
[398233226,1765443039748,-500.0,0.00016438,2]
[398233227,1765443039757,-500.0,0.00016438,2]
[398233228,1765443039767,-500.0,0.00016438,2]
[398233229,1765443039777,-500.0,0.00016438,2]
[398233230,1765443039790,-500.0,0.00016438,2]
[398233231,1765443039799,-500.0,0.00016438,2]
[398233232,1765443039809,-500.0,0.00016438,2]
[398233233,1765443039818,-500.0,0.00016438,2]
[398233234,1765443039827,-500.0,0.00016438,2]
[398233235,1765443039835,-500.0,0.00016438,2]
[398233236,1765443039844,-200.0,0.00016524,2]
[398233237,1765443039853,-200.0,0.00016546,2]
[398233238,1765443039862,-1060.54,0.00016571,2]
[398233239,1765443039872,-642.0,0.00016582,2]
[398233240,1765443039881,-218.0,0.00016602,2]
[398233241,1765443039891,-200.0,0.00016689,2]
[398233242,1765443039901,-758.0,0.0001671,2]
[398233243,1765443039911,-543.0,0.00016744,2]
[398233244,1765443039920,-1060.54,0.00016845,2]
[398233245,1765443039930,-200.0,0.00016856,2]
[398233246,1765443039939,-510.0,0.00016921,2]
[398233247,1765443039948,-500.0,0.00016999,2]
[398233248,1765443039958,-500.0,0.00016999,2]
[398233249,1765443039968,-466.09476317,0.00016999,2]
[398233250,1765443039977,-620.54099612,0.00016999,2]
[398233251,1765443039986,-509.6429594,0.00016999,2]
[398233252,1765443039995,-500.0,0.00016999,2]
[398233253,1765443040004,-500.0,0.00016999,2]
[398233254,1765443040013,-500.0,0.00016999,2]
[398233255,1765443040022,-172.0929542,0.00016999,2]
[398233256,1765443040031,-500.0,0.00016999,2]
[398233257,1765443040040,-500.0,0.00016999,2]
[398233258,1765443040050,-500.0,0.00016999,2]
[398233259,1765443040059,-500.0,0.00016999,2]
[398233260,1765443040068,-500.0,0.00016999,2]
[398233261,1765443040077,-500.0,0.00016999,2]
[398233262,1765443040087,-500.0,0.00016999,2]
[398233263,1765443040097,-500.0,0.00016999,2]
[398233264,1765443040106,-500.0,0.00016999,2]
[398233265,1765443040116,-333.0,0.00017082,2]
[398233266,1765443040125,-224.0,0.00017086,2]
[398233267,1765443040134,-1060.54,0.00017119,2]
[398233268,1765443040143,-263.95,0.00017138,2]
[398233269,1765443040152,-333.0,0.00017144,2]
[398233270,1765443040162,-333.0,0.00017177,2]
[398233271,1765443040171,-150.0,0.00017247,2]
[398233272,1765443040180,-150.0,0.00017247,2]
[398233273,1765443040189,-150.0,0.00017247,2]
[398233274,1765443040199,-150.0,0.00017247,2]
[398233275,1765443040208,-150.0,0.00017247,2]
[398233276,1765443040217,-466.0,0.00017277,2]
[398233277,1765443040227,-420.0,0.00017277,2]
[398233278,1765443040236,-1483.44,0.00017301,2]
[398233279,1765443040246,-668.94,0.00017341,2]
[398233280,1765443040255,-1680.0,0.00017364,2]
[398233281,1765443040264,-195.0,0.00017369,2]
[398233282,1765443040274,-333.0,0.00017372,2]
[398233283,1765443040283,-250.0,0.00017379,2]
[398233284,1765443040292,-195.0,0.00017379,2]
[398233285,1765443040301,-168.0,0.0001738,2]
[398233286,1765443040311,-300.0,0.0001738,2]
[398233287,1765443040320,-195.0,0.0001738,2]
[398233288,1765443040330,-250.0,0.0001738,2]
[398233289,1765443040342,-300.0,0.0001738,2]
[398233290,1765443040351,-150.0,0.00017384,2]
[398233291,1765443040360,-214.51278261,0.00017384,2]
[398233292,1765443040370,-157.07600834,0.00017384,2]
[398233293,1765443040379,-150.0,0.00017384,2]
[398233294,1765443040388,-150.0,0.00017384,2]
[398233295,1765443040397,-1060.54,0.00017393,2]
[398233296,1765443040407,-333.0,0.00017462,2]
[398233297,1765443040417,-250.0,0.00017489,2]
[398233298,1765443040426,-300.0,0.00017489,2]
[398233299,1765443040435,-195.0,0.00017489,2]
[398233300,1765443040444,-333.0,0.00017516,2]
[398233301,1765443040453,-261.90360583,0.00017521,2]
[398233302,1765443040462,-200.0,0.00017521,2]
[398233303,1765443040472,-151.0,0.00017572,2]
[398233304,1765443040481,-300.0,0.00017572,2]
[398233305,1765443040490,-322.6107,0.00017572,2]
[398233306,1765443040499,-500.0,0.00017572,2]
[398233307,1765443040511,-200.0,0.00017572,2]
[398233308,1765443040520,-500.0,0.00017572,2]
[398233309,1765443040529,-207.4,0.00017572,2]
[398233310,1765443040538,-500.0,0.00017572,2]
[398233311,1765443040547,-215.0738,0.00017572,2]
[398233312,1765443040558,-500.0,0.00017572,2]
[398233313,1765443040567,-223.0315306,0.00017572,2]
[398233314,1765443040576,-500.0,0.00017572,2]
[398233315,1765443040587,-231.28369723,0.00017572,2]
[398233316,1765443040595,-500.0,0.00017572,2]
[398233317,1765443040604,-239.84119403,0.00017572,2]
[398233318,1765443040614,-500.0,0.00017572,2]
[398233319,1765443040624,-248.71531821,0.00017572,2]
[398233320,1765443040633,-500.0,0.00017572,2]
[398233321,1765443040643,-257.91778498,0.00017572,2]
[398233322,1765443040655,-500.0,0.00017572,2]
[398233323,1765443040664,-344.81753355,0.00017572,2]
[398233324,1765443040673,-500.0,0.00017572,2]
[398233325,1765443040682,-500.0,0.00017572,2]
[398233326,1765443040691,-1199.0,0.00017572,2]
[398233327,1765443040700,-804.0,0.00017572,2]
[398233328,1765443040709,-333.0,0.00017627,2]
[398233329,1765443040718,-168.0,0.00017636,2]
[398233330,1765443040727,-1060.54,0.00017667,2]
[398233331,1765443040737,-150.0,0.00017718,2]
[398233332,1765443040746,-7229.41,0.00017799,2]
[398233333,1765443040755,-706.88,0.00017815,2]
[398233334,1765443040765,-168.0,0.00017826,2]
[398233335,1765443040774,-333.0,0.0001785,2]
[398233336,1765443040783,-3752.92,0.00017851,2]
[398233337,1765443040792,-333.0,0.00017913,2]
[398233338,1765443040801,-1060.54,0.00017941,2]
[398233339,1765443040810,-162.72,0.00018082,2]
[398233340,1765443040820,-333.0,0.00018083,2]
[398233341,1765443040829,-334.5472959,0.0001812,2]
[398233342,1765443040837,-1199.0,0.0001812,2]
[398233343,1765443040846,-190.0,0.00018121,2]
[398233344,1765443040855,-333.0,0.00018174,2]
[398233345,1765443040864,-1060.59,0.00018215,2]
[398233346,1765443040873,-333.0,0.00018234,2]
[398233347,1765443040882,-333.0,0.00018331,2]
[398233348,1765443040890,-168.0,0.00018441,2]
[398233349,1765443040899,-194.76336841,0.00018464,2]
[398233350,1765443040908,-333.0,0.00018537,2]
[398233351,1765443040917,-333.0,0.00018565,2]
[398233352,1765443040926,-333.0,0.00018612,2]
[398233353,1765443040935,-333.0,0.00018663,2]
[398233354,1765443040944,-156.28220564,0.00018668,2]
[398233355,1765443040952,-1199.0,0.00018668,2]
[398233356,1765443040962,-21457.50767027,0.0001869,2]
[398233357,1765443040971,-333.0,0.00018706,2]
[398233358,1765443040980,-333.0,0.00018781,2]
[398233359,1765443040990,-151.1298291,0.000188,2]
[398233360,1765443040999,-500.0,0.000188,2]
[398233361,1765443041008,-587.0,0.00018893,2]
[398233362,1765443041017,-151.0,0.00018941,2]
[398233363,1765443041026,-311.1,0.00018941,2]
[398233364,1765443041035,-500.0,0.00019023,2]
[398233365,1765443041044,-500.0,0.00019023,2]
[398233366,1765443041053,-2351.0,0.00019084,2]
[398233367,1765443041062,-12268.52316778,0.00019168,2]
[398233369,1765443041071,-1199.0,0.00019216,2]
[398233370,1765443041080,-1000.0,0.00019348,2]
[398233372,1765443041089,-1483.44,0.00019463,2]
[398233373,1765443041099,-1199.0,0.00019764,2]
[398233374,1765443041107,-1500.0,0.00019896,2]
[398233375,1765443041116,-274.07,0.00020187,2]
[398233376,1765443041125,-151.0,0.0002031,2]
[398233377,1765443041134,-322.6107,0.0002031,2]
[398233378,1765443041143,-1199.0,0.00020312,2]
[398233379,1765443041152,-1500.0,0.00020444,2]
[398233380,1765443041161,-823.0,0.00020661,2]
[398233381,1765443041171,-162.72,0.00020795,2]
[398233382,1765443041180,-1199.0,0.0002086,2]
[398233383,1765443041189,-3292.0,0.00020975,2]
[398233384,1765443041198,-1199.0,0.00021408,2]
[398233385,1765443041207,-21457.50767027,0.00021579,2]
[398233386,1765443041216,-1483.44,0.00021626,2]
[398233387,1765443041225,-334.5472959,0.00021679,2]
[398233388,1765443041234,-1199.0,0.00021956,2]
[398233389,1765443041243,-12268.52316778,0.00021998,2]
[398233390,1765443041252,-299.99,0.00022562,7]
[398233391,1765443041262,-8085.58,0.00022562,2]